fUST/lending_fUST_20241018
["ID","MTS","AMOUNT","RATE_DAILY","PERIOD"]
[340414714,1729224641892,-151.0,0.00013688,2]
[340414715,1729224641903,-1301.439552,0.00013688,2]
[340414716,1729224641913,-1301.439552,0.00013688,2]
[340414717,1729224641924,-1301.439552,0.00013688,2]
[340414718,1729224641933,-1301.439552,0.00013688,2]
[340414719,1729224641943,-16286.78091851,0.00013688,2]
[340415836,1729224985603,150.0,0.0001928,90]
[340415882,1729225756174,-159.944785,0.00012222,2]
[340416040,1729225838870,-159.944785,0.00012302,2]
[340416041,1729225838880,-159.944785,0.00012382,2]
[340416042,1729225838892,-159.944785,0.00012461,2]
[340416043,1729225838904,-159.944785,0.00012541,2]
[340416044,1729225838913,-159.944785,0.0001262,2]
[340416045,1729225838923,-159.944785,0.000127,2]
[340416046,1729225838933,-159.944785,0.0001278,2]
[340416047,1729225838942,-159.944785,0.00012859,2]
[340416048,1729225838952,-3562.14015346,0.00013197,2]
[340416049,1729225838961,-153.0,0.000132,2]
[340416050,1729225838974,-306.0,0.000132,2]
[340416051,1729225838983,-1109.61149334,0.00013226,2]
[340416053,1729225838993,-300.0,0.00013251,2]
[340416055,1729225839002,-300.0,0.00013251,2]
[340416057,1729225839011,-21925.79839587,0.00013251,2]
[340416059,1729225839021,-4833.97214881,0.00013252,2]
[340416061,1729225839031,-594.33563312,0.00013252,2]
[340416063,1729225839042,-4521.760118,0.00013326,2]
[340416065,1729225839051,-174.982,0.00013498,2]
[340416067,1729225839061,-216.2671103,0.0001356,2]
[340416069,1729225839071,-210.4868531,0.0001356,2]
[340416070,1729225839081,-210.4868531,0.0001356,2]
[340416071,1729225839090,-210.4166343,0.0001356,2]
[340416072,1729225839100,-748.64240462,0.00013578,2]
[340416077,1729225840746,-30354.99982982,0.00013578,2]
[340416078,1729225840756,-795.10132469,0.00013598,2]
[340416079,1729225840765,-49037.6521312,0.00013658,2]
[340416080,1729225840775,-83326.4508782,0.00013658,2]
[340416081,1729225840786,-49037.6521312,0.00013668,2]
[340416082,1729225840796,-83326.4508782,0.00013668,2]
[340416083,1729225840805,-191.0,0.0001367,2]
[340416084,1729225840816,-500.0,0.00013673,2]
[340416085,1729225840829,-500.0,0.00013673,2]
[340416086,1729225840842,-500.0,0.00013673,2]
[340416087,1729225840852,-509.66089306,0.00013673,2]
[340416088,1729225840862,-500.0,0.00013673,2]
[340416089,1729225840871,-500.0,0.00013673,2]
[340416090,1729225840879,-500.0,0.00013673,2]
[340416091,1729225840889,-500.0,0.00013673,2]
[340416092,1729225840899,-500.0,0.00013673,2]
[340416093,1729225840909,-500.0,0.00013673,2]
[340416094,1729225840920,-500.0,0.00013673,2]
[340416095,1729225840930,-500.0,0.00013673,2]
[340416096,1729225840940,-500.0,0.00013673,2]
[340416097,1729225840950,-500.0,0.00013673,2]
[340416098,1729225840959,-500.0,0.00013673,2]
[340416099,1729225840969,-500.0,0.00013673,2]
[340416100,1729225840978,-500.0,0.00013673,2]
[340416101,1729225840988,-151.0,0.00013678,2]
[340416102,1729225841000,-49037.6521312,0.00013678,2]
[340416103,1729225841009,-83326.4508782,0.00013678,2]
[340416104,1729225841019,-150.01,0.00013687,2]
[340416105,1729225841029,-3246.5710829,0.00013687,2]
[340416106,1729225841039,-169.2865344,0.00013688,2]
[340416107,1729225841048,-151.0,0.00013688,2]
[340416108,1729225841058,-151.0,0.00013688,2]
[340416109,1729225841068,-152.100461,0.00013688,2]
[340416110,1729225841078,-451.715218,0.00013688,2]
[340416111,1729225841090,-151.0,0.00013688,2]
[340416112,1729225841100,-220.90144,0.00013688,2]
[340416113,1729225841110,-451.715218,0.00013688,2]
[340416114,1729225841120,-220.90144,0.00013688,2]
[340416115,1729225841130,-151.0,0.00013688,2]
[340416116,1729225841141,-863.244501,0.00013688,2]
[340416117,1729225841151,-1104.486482,0.00013688,2]
[340416118,1729225841160,-863.244501,0.00013688,2]
[340416119,1729225841170,-1104.486482,0.00013688,2]
[340416120,1729225841181,-1480.47078,0.00013688,2]
[340416121,1729225841191,-1480.47078,0.00013688,2]
[340416122,1729225841200,-214.247306,0.00013688,2]
[340416123,1729225841209,-214.247306,0.00013688,2]
[340416124,1729225841218,-151.0,0.00013688,2]
[340416125,1729225841228,-167.947046,0.00013688,2]
[340416126,1729225841237,-151.0,0.00013688,2]
[340416127,1729225841246,-153.300284,0.00013688,2]
[340416128,1729225841255,-214.247306,0.00013688,2]
[340416129,1729225841264,-214.247306,0.00013688,2]
[340416130,1729225841274,-1532.439829,0.00013688,2]
[340416131,1729225841284,-1128.71916186,0.00013688,2]
[340416160,1729225844458,-403.72066714,0.00013688,2]
[340416162,1729225844468,-1532.439829,0.00013688,2]
[340416164,1729225844478,-1532.439829,0.00013688,2]
[340416166,1729225844487,-396.02287,0.00013688,2]
[340416168,1729225844496,-396.02287,0.00013688,2]
[340416170,1729225844506,-151.0,0.00013688,2]
[340416172,1729225844516,-151.0,0.00013688,2]
[340416174,1729225844526,-151.0,0.00013688,2]
[340416176,1729225844536,-151.0,0.00013688,2]
[340416178,1729225844546,-1478.57767,0.00013688,2]
[340416180,1729225844556,-1478.57767,0.00013688,2]
[340416182,1729225844566,-225.53455,0.00013688,2]
[340416184,1729225844575,-225.53455,0.00013688,2]
[340416186,1729225844585,-151.0,0.00013688,2]
[340416188,1729225844595,-151.0,0.00013688,2]
[340416190,1729225844605,-1478.57767,0.00013688,2]
[340416192,1729225844615,-1478.57767,0.00013688,2]
[340416194,1729225844625,-225.53455,0.00013688,2]
[340416196,1729225844635,-225.53455,0.00013688,2]
[340416198,1729225844645,-151.207621,0.00013688,2]
[340416200,1729225844656,-151.0,0.00013688,2]
[340416202,1729225844666,-151.0,0.00013688,2]
[340416204,1729225844676,-151.0,0.00013688,2]
[340416206,1729225844686,-151.0,0.00013688,2]
[340416208,1729225844696,-277.420623,0.00013688,2]
[340416210,1729225844707,-277.420623,0.00013688,2]
[340416212,1729225844718,-277.420623,0.00013688,2]
[340416214,1729225844728,-277.420623,0.00013688,2]
[340416216,1729225844738,-238.625535,0.00013688,2]
[340416218,1729225844747,-238.625535,0.00013688,2]
[340416220,1729225844757,-238.625535,0.00013688,2]
[340416222,1729225844767,-238.625535,0.00013688,2]
[340416224,1729225844777,-60.16889971,0.00013688,2]
[340416489,1729226069898,150.0,0.0001928,90]
[340416516,1729226963152,-1137.76586834,0.00012295,2]
[340416627,1729227037936,-300.0,0.00012294,2]
[340416629,1729227037947,-300.0,0.00012294,2]
[340416631,1729227037958,-251.49822843,0.00012295,2]
[340416690,1729227039746,-364.1952,0.00012295,2]
[340416692,1729227039758,-475.8,0.00012295,2]
[340417385,1729227154016,150.0,0.0001928,90]
[340417406,1729228175993,151.0,0.0001928,90]
[340418035,1729228238180,-207.58077,0.00011688,2]
[340418036,1729228238190,-883.46577197,0.00011719,2]
[340418325,1729228243046,-71.0433166,0.00011719,2]
[340418827,1729229196049,151.0,0.0001928,90]
[340418838,1729229348159,-156.7458893,0.00010949,2]
[340419031,1729229438549,-7727.72895245,0.00010949,2]
[340419033,1729229438559,-250.0,0.00011006,2]
[340419035,1729229438569,-300.0,0.00011048,2]
[340419037,1729229438578,-5464.3618281,0.00011049,2]
[340419039,1729229438588,-3000.0,0.00011055,2]
[340419041,1729229438598,-716.2726059,0.00011124,2]
[340419043,1729229438607,-1323.5887389,0.00011219,2]
[340419045,1729229438617,-3911.9544913,0.00011315,2]
[340419167,1729229446196,-609.80562671,0.00011315,2]
[340419169,1729229446206,-230.435105,0.00011548,2]
[340419171,1729229446216,-230.435105,0.0001158,2]
[340419174,1729229446227,-230.435105,0.00011612,2]
[340419176,1729229446237,-230.435105,0.00011643,2]
[340419177,1729229446246,-230.435105,0.00011675,2]
[340419179,1729229446256,-176.051573,0.00011695,2]
[340419182,1729229446266,-230.435105,0.00011707,2]
[340419183,1729229446276,-230.435105,0.00011738,2]
[340419184,1729229446286,-176.051573,0.00011753,2]
[340419185,1729229446295,-230.435105,0.0001177,2]
[340419186,1729229446304,-230.435105,0.00011802,2]
[340419187,1729229446314,-230.435105,0.00011833,2]
[340419188,1729229446324,-230.435105,0.00011865,2]
[340419189,1729229446333,-230.435105,0.00011897,2]
[340419190,1729229446343,-230.435105,0.00011929,2]
[340419191,1729229446352,-230.435105,0.0001196,2]
[340419192,1729229446362,-230.435105,0.00011992,2]
[340419193,1729229446372,-230.435105,0.00012024,2]
[340419194,1729229446381,-230.435105,0.00012055,2]
[340419195,1729229446391,-230.435105,0.00012087,2]
[340419196,1729229446401,-1000.0,0.000121,2]
[340419197,1729229446410,-230.435105,0.00012119,2]
[340419198,1729229446422,-230.435105,0.0001215,2]
[340419199,1729229446432,-420.0,0.00012153,2]
[340419200,1729229446442,-153.0,0.00012204,2]
[340419201,1729229446459,-153.494191,0.000123,2]
[340419202,1729229446473,-151.0,0.0001262,2]
[340419203,1729229446483,-644.37232791,0.0001262,2]
[340419205,1729229446493,-1150.0,0.0001268,2]
[340419207,1729229446503,-431.7317333,0.00013,2]
[340419209,1729229446513,-1000.0,0.00013014,2]
[340419211,1729229446522,-587.0,0.00013368,2]
[340419213,1729229446533,-197.4758415,0.00013534,2]
[340419215,1729229446548,-153.0,0.00013534,2]
[340419217,1729229446558,-153.0,0.00013534,2]
[340419219,1729229446567,-153.0,0.00013534,2]
[340419221,1729229446579,-153.0,0.00013534,2]
[340419223,1729229446588,-153.0,0.00013534,2]
[340419225,1729229446599,-153.0,0.00013534,2]
[340419227,1729229446608,-153.0,0.00013534,2]
[340419229,1729229446618,-13677.4349891,0.00013551,2]
[340419231,1729229446628,-4472.97121831,0.00013551,2]
[340419233,1729229446637,-66890.772952,0.00013561,2]
[340419235,1729229446647,-1805.0,0.00013571,2]
[340419237,1729229446656,-1162.828,0.00013571,2]
[340419239,1729229446666,-150.617,0.00013571,2]
[340419241,1729229446675,-288.408,0.00013571,2]
[340419243,1729229446684,-624.17928195,0.00013598,2]
[340419245,1729229446693,-150.0,0.000136,2]
[340419247,1729229446703,-239.874191,0.00013671,2]
[340419249,1729229446714,-838.2324272,0.00013671,2]
[340419251,1729229446726,-154.515879,0.00013671,2]
[340419253,1729229446736,-388.1079902,0.00013671,2]
[340419255,1729229446746,-301.731027,0.00013671,2]
[340419257,1729229446755,-210.5530868,0.00013671,2]
[340419259,1729229446764,-210.5530868,0.00013671,2]
[340419261,1729229446774,-210.5530868,0.00013671,2]
[340419263,1729229446784,-210.5530868,0.00013671,2]
[340419265,1729229446793,-210.5530868,0.00013671,2]
[340419267,1729229446803,-210.5530868,0.00013671,2]
[340419269,1729229446814,-210.5530868,0.00013671,2]
[340419271,1729229446824,-500.0,0.00013673,2]
[340419273,1729229446833,-500.97860611,0.00013673,2]
[340419275,1729229446842,-500.0,0.00013673,2]
[340419277,1729229446851,-500.0,0.00013673,2]
[340419279,1729229446861,-500.0,0.00013673,2]
[340419281,1729229446870,-500.0,0.00013673,2]
[340419283,1729229446879,-321.81516879,0.00013673,2]
[340419285,1729229446890,-378.35098409,0.00013673,2]
[340419287,1729229446899,-500.0,0.00013673,2]
[340419289,1729229446909,-500.0,0.00013673,2]
[340419291,1729229446919,-416.65149735,0.00013673,2]
[340419293,1729229446930,-500.0,0.00013673,2]
[340419295,1729229446940,-500.0,0.00013673,2]
[340419297,1729229446950,-341.84888666,0.00013673,2]
[340419299,1729229446960,-500.0,0.00013673,2]
[340419301,1729229446970,-187.891983,0.00013678,2]
[340419303,1729229446981,-3212.62604248,0.00013678,2]
[340419401,1729229681578,200.4,0.0001,2]
[340419406,1729230216776,151.0,0.0001928,90]
[340425418,1729230632398,-477.58602924,0.00012332,2]
[340425421,1729230632412,-319.31252,0.00012332,2]
[340425510,1729230640354,-22.19531686,0.00012332,2]
[340425512,1729230640364,-162.491513,0.00012375,2]
[340425514,1729230640375,-162.491513,0.00012536,2]
[340425517,1729230640387,-162.491513,0.00012697,2]
[340425519,1729230640396,-162.491513,0.00012859,2]
[340425521,1729230640405,-162.491513,0.0001302,2]
[340425523,1729230640419,-153.0,0.000131,2]
[340425525,1729230640430,-153.0,0.000131,2]
[340425527,1729230640439,-153.0,0.000131,2]
[340425529,1729230640451,-153.0,0.000131,2]
[340425531,1729230640461,-153.0,0.000131,2]
[340425533,1729230640470,-153.0,0.000131,2]
[340425535,1729230640479,-153.0,0.000131,2]
[340425538,1729230640489,-153.0,0.000131,2]
[340425540,1729230640499,-218.59438137,0.000132,2]
[340425542,1729230640508,-300.0,0.00013396,2]
[340425544,1729230640517,-300.0,0.00013396,2]
[340425546,1729230640527,-446.0810405,0.00013397,2]
[340425548,1729230640538,-153.0,0.00013534,2]
[340425550,1729230640548,-153.0,0.00013534,2]
[340425552,1729230640557,-150.0,0.00013536,2]
[340425554,1729230640567,-527.0,0.00013536,2]
[340425556,1729230640576,-1158.0,0.00013536,2]
[340425558,1729230640586,-1805.0,0.00013536,2]
[340425560,1729230640595,-150.0,0.00013536,2]
[340425562,1729230640604,-561.7613538,0.00013578,2]
[340425564,1729230640613,-795.10132469,0.00013578,2]
[340425566,1729230640623,-150.0,0.000136,2]
[340425568,1729230640632,-429.58155194,0.00013658,2]
[340425570,1729230640642,-53210.091452,0.00013658,2]
[340425572,1729230640651,-12498.9676318,0.00013658,2]
[340425574,1729230640660,-35473.3943013,0.00013658,2]
[340425576,1729230640669,-8332.64508786,0.00013658,2]
[340425578,1729230640678,-151.0,0.00013659,2]
[340425580,1729230640688,-151.0,0.00013659,2]
[340425582,1729230640698,-1359.009813,0.00013659,2]
[340425584,1729230640707,-1359.009813,0.00013659,2]
[340425586,1729230640717,-1359.009813,0.00013659,2]
[340425589,1729230640726,-1359.009813,0.00013659,2]
[340425591,1729230640735,-35473.3943013,0.00013667,2]
[340425593,1729230640744,-8332.64508786,0.00013667,2]
[340425595,1729230640755,-151.0,0.00013667,2]
[340425622,1729230640997,-151.0,0.00013667,2]
[340425624,1729230641008,-151.0,0.00013667,2]
[340425627,1729230641020,-151.0,0.00013667,2]
[340425629,1729230641032,-1359.009813,0.00013667,2]
[340425631,1729230641044,-1359.009813,0.00013667,2]
[340425634,1729230641056,-1359.009813,0.00013667,2]
[340425636,1729230641065,-1359.009813,0.00013667,2]
[340425638,1729230641074,-1359.009813,0.00013667,2]
[340425640,1729230641083,-1359.009813,0.00013667,2]
[340425642,1729230641093,-1359.009813,0.00013667,2]
[340425644,1729230641103,-1359.009813,0.00013667,2]
[340425646,1729230641113,-35473.3943013,0.00013667,2]
[340425648,1729230641122,-8332.64508786,0.00013667,2]
[340425650,1729230641133,-35473.3943013,0.00013668,2]
[340425652,1729230641143,-8332.64508786,0.00013668,2]
[340425654,1729230641153,-151.0,0.00013668,2]
[340425656,1729230641163,-151.0,0.00013668,2]
[340425658,1729230641172,-151.0,0.00013668,2]
[340425660,1729230641181,-151.0,0.00013668,2]
[340425662,1729230641191,-151.0,0.00013668,2]
[340425664,1729230641200,-151.0,0.00013668,2]
[340425666,1729230641210,-151.0,0.00013668,2]
[340425669,1729230641219,-259.457787,0.00013668,2]
[340425671,1729230641229,-151.0,0.00013668,2]
[340425673,1729230641238,-151.0,0.00013668,2]
[340425675,1729230641247,-151.0,0.00013668,2]
[340425677,1729230641257,-151.0,0.00013668,2]
[340425679,1729230641267,-151.0,0.00013668,2]
[340425681,1729230641276,-151.0,0.00013668,2]
[340425683,1729230641285,-151.0,0.00013668,2]
[340425685,1729230641295,-151.0,0.00013668,2]
[340425687,1729230641304,-151.0,0.00013668,2]
[340425689,1729230641313,-151.0,0.00013668,2]
[340425691,1729230641322,-151.0,0.00013668,2]
[340425693,1729230641332,-151.0,0.00013668,2]
[340425695,1729230641341,-151.0,0.00013668,2]
[340425697,1729230641350,-297.601195,0.00013668,2]
[340425699,1729230641360,-297.601195,0.00013668,2]
[340425701,1729230641369,-297.601195,0.00013668,2]
[340425703,1729230641378,-297.601195,0.00013668,2]
[340425705,1729230641387,-151.0,0.00013668,2]
[340425707,1729230641396,-151.0,0.00013668,2]
[340425709,1729230641405,-151.0,0.00013668,2]
[340425711,1729230641414,-151.0,0.00013668,2]
[340425713,1729230641427,-297.601195,0.00013668,2]
[340425715,1729230641437,-297.601195,0.00013668,2]
[340425718,1729230641446,-297.601195,0.00013668,2]
[340425720,1729230641455,-297.601195,0.00013668,2]
[340425722,1729230641465,-1104.486482,0.00013668,2]
[340425724,1729230641475,-1104.486482,0.00013668,2]
[340425726,1729230641484,-1104.486482,0.00013668,2]
[340425728,1729230641494,-1104.486482,0.00013668,2]
[340425730,1729230641504,-151.0,0.00013668,2]
[340425732,1729230641515,-151.0,0.00013668,2]
[340425734,1729230641527,-151.0,0.00013668,2]
[340425736,1729230641536,-1104.486482,0.00013668,2]
[340425738,1729230641545,-151.0,0.00013668,2]
[340425740,1729230641554,-1104.486482,0.00013668,2]
[340425742,1729230641564,-1104.486482,0.00013668,2]
[340425744,1729230641573,-1104.486482,0.00013668,2]
[340425747,1729230641583,-151.0,0.00013668,2]
[340425749,1729230641592,-151.0,0.00013668,2]
[340425751,1729230641601,-151.0,0.00013668,2]
[340425753,1729230641610,-151.0,0.00013668,2]
[340425755,1729230641620,-3386.916869,0.00013668,2]
[340425757,1729230641629,-3386.916869,0.00013668,2]
[340425759,1729230641638,-3386.916869,0.00013668,2]
[340425761,1729230641648,-3386.916869,0.00013668,2]
[340425763,1729230641657,-3386.916869,0.00013668,2]
[340425765,1729230641667,-3386.916869,0.00013668,2]
[340425767,1729230641677,-3386.916869,0.00013668,2]
[340425769,1729230641685,-3386.916869,0.00013668,2]
[340425771,1729230641695,-151.0,0.00013668,2]
[340425773,1729230641704,-151.0,0.00013668,2]
[340425775,1729230641713,-293.106556,0.00013668,2]
[340425777,1729230641723,-151.0,0.00013668,2]
[340425779,1729230641734,-151.0,0.00013668,2]
[340425781,1729230641743,-214.247306,0.00013668,2]
[340425783,1729230641753,-214.247306,0.00013668,2]
[340425786,1729230641764,-214.247306,0.00013668,2]
[340425788,1729230641773,-214.247306,0.00013668,2]
[340425790,1729230641783,-214.247306,0.00013668,2]
[340425792,1729230641792,-214.247306,0.00013668,2]
[340425793,1729230641801,-214.247306,0.00013668,2]
[340425794,1729230641810,-214.247306,0.00013668,2]
[340425796,1729230641819,-587.9871,0.00013668,2]
[340425798,1729230641828,-587.9871,0.00013668,2]
[340425800,1729230641837,-587.9871,0.00013668,2]
[340425801,1729230641847,-587.9871,0.00013668,2]
[340425803,1729230641856,-587.9871,0.00013668,2]
[340425805,1729230641865,-587.9871,0.00013668,2]
[340425807,1729230641874,-587.9871,0.00013668,2]
[340425809,1729230641883,-587.9871,0.00013668,2]
[340425811,1729230641892,-151.0,0.00013668,2]
[340425813,1729230641902,-151.0,0.00013668,2]
[340425815,1729230641910,-151.0,0.00013668,2]
[340425817,1729230641919,-151.0,0.00013668,2]
[340425819,1729230641928,-151.0,0.00013668,2]
[340425821,1729230641937,-151.0,0.00013668,2]
[340425824,1729230641947,-151.0,0.00013668,2]
[340425826,1729230641956,-151.0,0.00013668,2]
[340425828,1729230641966,-212.562912,0.00013668,2]
[340425830,1729230641975,-151.0,0.00013668,2]
[340425832,1729230641984,-151.0,0.00013668,2]
[340425834,1729230641993,-151.0,0.00013668,2]
[340425836,1729230642002,-151.0,0.00013668,2]
[340425838,1729230642011,-151.0,0.00013668,2]
[340425840,1729230642021,-151.0,0.00013668,2]
[340425842,1729230642029,-151.0,0.00013668,2]
[340425844,1729230642039,-170.710893,0.00013668,2]
[340425846,1729230642048,-151.0,0.00013668,2]
[340425848,1729230642056,-234.272922,0.00013668,2]
[340425850,1729230642066,-232.546328,0.00013668,2]
[340425852,1729230642076,-232.546328,0.00013668,2]
[340425854,1729230642085,-232.546328,0.00013668,2]
[340425856,1729230642095,-232.546328,0.00013668,2]
[340425858,1729230642104,-232.546328,0.00013668,2]
[340425860,1729230642113,-232.546328,0.00013668,2]
[340425862,1729230642122,-232.546328,0.00013668,2]
[340425864,1729230642131,-232.546328,0.00013668,2]
[340425866,1729230642140,-232.546328,0.00013668,2]
[340425868,1729230642151,-232.546328,0.00013668,2]
[340425870,1729230642160,-232.546328,0.00013668,2]
[340425872,1729230642169,-232.546328,0.00013668,2]
[340425874,1729230642178,-151.0,0.00013668,2]
[340425876,1729230642187,-151.0,0.00013668,2]
[340425878,1729230642196,-195.666722,0.00013668,2]
[340425880,1729230642206,-551.548296,0.00013668,2]
[340425882,1729230642215,-551.548296,0.00013668,2]
[340425884,1729230642225,-551.548296,0.00013668,2]
[340425886,1729230642234,-551.548296,0.00013668,2]
[340425888,1729230642243,-551.548296,0.00013668,2]
[340425890,1729230642253,-551.548296,0.00013668,2]
[340425892,1729230642263,-1359.009813,0.00013668,2]
[340425894,1729230642273,-1359.009813,0.00013668,2]
[340425896,1729230642283,-1359.009813,0.00013668,2]
[340425899,1729230642293,-151.0,0.00013668,2]
[340425901,1729230642302,-1359.009813,0.00013668,2]
[340425903,1729230642311,-167.947046,0.00013668,2]
[340425905,1729230642321,-551.548296,0.00013668,2]
[340425907,1729230642330,-551.548296,0.00013668,2]
[340425909,1729230642340,-551.548296,0.00013668,2]
[340425911,1729230642350,-551.548296,0.00013668,2]
[340425913,1729230642359,-551.548296,0.00013668,2]
[340425915,1729230642368,-551.548296,0.00013668,2]
[340425917,1729230642378,-1359.009813,0.00013668,2]
[340425919,1729230642388,-1359.009813,0.00013668,2]
[340425921,1729230642399,-1359.009813,0.00013668,2]
[340425923,1729230642409,-1359.009811,0.00013668,2]
[340425926,1729230642424,-35473.3943013,0.00013668,2]
[340425928,1729230642435,-16665.2901757,0.00013668,2]
[340425930,1729230642444,-4166.32254393,0.00013668,2]
[340425932,1729230642455,-501.05674957,0.00013673,2]
[340425934,1729230642465,-500.0,0.00013673,2]
[340425936,1729230642475,-500.0,0.00013673,2]
[340425938,1729230642485,-500.0,0.00013673,2]
[340425940,1729230642494,-500.0,0.00013673,2]
[340425942,1729230642504,-509.66089306,0.00013673,2]
[340425944,1729230642514,-500.0,0.00013673,2]
[340425946,1729230642523,-500.0,0.00013673,2]
[340425948,1729230642532,-500.0,0.00013673,2]
[340425950,1729230642542,-500.0,0.00013673,2]
[340425952,1729230642551,-500.0,0.00013673,2]
[340425954,1729230642560,-500.0,0.00013673,2]
[340425956,1729230642570,-502.67836408,0.00013673,2]
[340425958,1729230642579,-500.0,0.00013673,2]
[340425960,1729230642588,-500.0,0.00013673,2]
[340425962,1729230642597,-500.0,0.00013673,2]
[340425964,1729230642607,-500.0,0.00013673,2]
[340425966,1729230642616,-500.0,0.00013673,2]
[340425968,1729230642626,-500.0,0.00013673,2]
[340425970,1729230642635,-500.0,0.00013673,2]
[340425972,1729230642646,-400.09184816,0.00013673,2]
[340425974,1729230642656,-500.0,0.00013673,2]
[340425977,1729230642666,-151.0,0.00013673,2]
[340425978,1729230642675,-151.0,0.00013673,2]
[340425980,1729230642685,-151.0,0.00013673,2]
[340425982,1729230642695,-228.764385,0.00013673,2]
[340425984,1729230642704,-297.601195,0.00013673,2]
[340425986,1729230642714,-151.0,0.00013673,2]
[340425988,1729230642727,-297.601195,0.00013673,2]
[340425990,1729230642738,-1104.486482,0.00013673,2]
[340425992,1729230642747,-1104.486482,0.00013673,2]
[340425994,1729230642757,-151.0,0.00013673,2]
[340425996,1729230642766,-3386.916869,0.00013673,2]
[340425998,1729230642776,-3386.916869,0.00013673,2]
[340426000,1729230642785,-151.0,0.00013673,2]
[340426002,1729230642794,-214.247306,0.00013673,2]
[340426004,1729230642804,-214.247306,0.00013673,2]
[340426006,1729230642814,-587.9871,0.00013673,2]
[340426008,1729230642823,-587.9871,0.00013673,2]
[340426010,1729230642833,-151.0,0.00013673,2]
[340426012,1729230642842,-151.0,0.00013673,2]
[340426014,1729230642851,-232.546328,0.00013673,2]
[340426016,1729230642861,-232.546328,0.00013673,2]
[340426018,1729230642870,-232.546328,0.00013673,2]
[340426020,1729230642879,-232.546328,0.00013673,2]
[340426021,1729230642888,-323.19185971,0.00013673,2]
[340426022,1729230642916,-500.0,0.00013673,2]
[340426023,1729230642925,-228.35643629,0.00013673,2]
[340426024,1729230642935,-551.548296,0.00013673,2]
[340426027,1729230642945,-551.548296,0.00013673,2]
[340426029,1729230642955,-551.548296,0.00013673,2]
[340426031,1729230642964,-150.01,0.00013677,2]
[340426033,1729230642975,-3895.88529948,0.00013677,2]
[340426035,1729230642985,-321.581,0.00013677,2]
[340426037,1729230642994,-249.613713,0.00013677,2]
[340426040,1729230643003,-180.42764,0.00013677,2]
[340426042,1729230643013,-180.42764,0.00013677,2]
[340426043,1729230643022,-151.0,0.00013677,2]
[340426044,1729230643031,-151.0,0.00013677,2]
[340426045,1729230643041,-796.928341,0.00013677,2]
[340426046,1729230643050,-796.928341,0.00013677,2]
[340426047,1729230643060,-796.928341,0.00013677,2]
[340426048,1729230643069,-796.928341,0.00013677,2]
[340426049,1729230643078,-2329.790739,0.00013677,2]
[340426050,1729230643088,-2329.790739,0.00013677,2]
[340426051,1729230643098,-2329.790739,0.00013677,2]
[340426052,1729230643107,-2329.790739,0.00013677,2]
[340426053,1729230643117,-151.0,0.00013677,2]
[340426057,1729230643127,-151.0,0.00013677,2]
[340426060,1729230643137,-151.0,0.00013677,2]
[340426062,1729230643147,-151.0,0.00013677,2]
[340426065,1729230643157,-151.0,0.00013677,2]
[340426068,1729230643166,-151.0,0.00013677,2]
[340426071,1729230643177,-151.0,0.00013677,2]
[340426074,1729230643186,-151.0,0.00013677,2]
[340426077,1729230643196,-151.0,0.00013677,2]
[340426080,1729230643206,-151.0,0.00013677,2]
[340426085,1729230643217,-153.849392,0.00013677,2]
[340426087,1729230643227,-153.849392,0.00013677,2]
[340426089,1729230643237,-153.849392,0.00013677,2]
[340426091,1729230643247,-153.849392,0.00013677,2]